bitfinex-derivatives/quotes_BTCF0:USTF0_20241023
["timestamp","ask_amount","ask_price","bid_price","bid_amount"]
[1729673544329,0.060018,66689.0,66684.0,0.3608]
[1729673544630,0.060018,66689.0,66685.0,0.11]
[1729673544631,0.028982,66688.0,66685.0,0.11]
[1729673544834,0.028982,66688.0,66687.0,0.00755786]
[1729673545029,0.028982,66688.0,66687.0,0.11755786]
[1729673545236,0.060018,66689.0,66687.0,0.22798381]
[1729673545429,0.060018,66689.0,66688.0,0.11042595]
[1729673546425,0.11,66693.0,66688.0,0.17044495]
[1729673546629,0.11,66693.0,66691.0,0.07493681]
[1729673547236,0.11,66693.0,66690.0,0.18493681]
[1729673547934,0.170016,66693.0,66690.0,0.18493681]
[1729673548440,0.170016,66693.0,66691.0,0.07493681]
[1729673550335,0.170016,66693.0,66690.0,0.07493681]
[1729673550539,0.170016,66693.0,66691.0,0.18550167]
[1729673550731,0.170016,66693.0,66691.0,0.07493681]
[1729673551139,0.170016,66693.0,66692.0,0.07493681]
[1729673551439,0.170016,66693.0,66692.0,0.18530627]
[1729673552740,0.170016,66693.0,66691.0,0.07493681]
[1729673553034,0.170016,66693.0,66692.0,0.07493681]
[1729673553239,0.170016,66693.0,66691.0,0.07493681]
[1729673553435,0.170016,66693.0,66689.0,0.170018]
[1729673553436,0.170016,66693.0,66692.0,0.07493681]
[1729673553937,0.170016,66693.0,66692.0,0.18533368]
[1729673554241,0.170016,66693.0,66692.0,0.1853825]
[1729673554838,0.060017,66691.0,66690.0,0.07493681]
[1729673555039,0.170017,66691.0,66690.0,0.07489928]
[1729673555235,0.060018,66690.0,66689.0,0.07489928]
[1729673555431,0.223418,66690.0,66689.0,0.11049478]
[1729673555636,0.223418,66690.0,66689.0,0.18538895]
[1729673556237,0.223418,66690.0,66689.0,0.18538388]
[1729673556436,0.1634,66690.0,66688.0,0.07489417]
[1729673556645,0.170018,66689.0,66688.0,0.07489417]
[1729673556839,0.170018,66689.0,66688.0,0.18537902]
[1729673557043,0.060018,66689.0,66688.0,0.18537902]
[1729673557345,0.170018,66689.0,66688.0,0.18537902]
[1729673559046,0.170018,66689.0,66678.0,0.00076]
[1729673559047,0.5808,66689.0,66678.0,0.00076]
[1729673559244,0.5808,66689.0,66685.0,0.04493122]
[1729673559245,0.060019,66688.0,66685.0,0.04493122]
[1729673559551,0.3608,66689.0,66676.0,0.06003]
[1729673559850,0.3608,66689.0,66685.0,0.0449107]
[1729673559851,0.060021,66686.0,66685.0,0.0449107]
[1729673560041,0.3608,66689.0,66684.0,0.0449107]
[1729673560235,0.3608,66689.0,66682.0,0.04491209]
[1729673560440,0.3608,66689.0,66677.0,0.060029]
[1729673560741,0.060023,66684.0,66683.0,0.04489428]
[1729673560941,0.170023,66684.0,66683.0,0.04489428]
[1729673561339,0.44988,66683.0,66671.0,0.3608]
[1729673561534,0.11,66672.0,66671.0,0.3608]
[1729673561742,0.420829,66677.0,66675.0,0.060031]
[1729673561939,0.02043163,66683.0,66676.0,0.11]
[1729673562247,0.3608,66687.0,66686.0,0.060021]
[1729673562545,0.11,66692.0,66691.0,0.060017]
[1729673562948,0.02077861,66700.0,66691.0,0.11]
[1729673563149,0.3608,66702.0,66698.0,0.11]
[1729673563447,0.11,66704.0,66701.0,0.11]
[1729673563749,0.060007,66702.0,66701.0,0.060007]
[1729673564646,0.3608,66709.0,66708.0,0.060001]
[1729673564946,0.3608,66709.0,66708.0,0.230001]
[1729673565337,0.3608,66709.0,66708.0,0.060001]
[1729673565745,0.3608,66709.0,66705.0,0.17]
[1729673566448,0.3608,66709.0,66706.0,0.060003]
[1729673567347,0.3608,66709.0,66707.0,0.17]
[1729673567538,0.3608,66709.0,66704.0,0.17]
[1729673567844,0.060004,66705.0,66703.0,0.0508]
[1729673568937,0.5308,66709.0,66701.0,0.06128638]
[1729673569146,0.060002,66708.0,66701.0,0.12129338]
[1729673569753,0.060007,66702.0,66697.0,0.17]
[1729673570051,0.060004,66706.0,66701.0,0.17]
[1729673570244,0.060004,66705.0,66701.0,0.17]
[1729673570445,0.060005,66704.0,66701.0,0.09000634]
[1729673570645,0.060005,66704.0,66696.0,0.35317437]
[1729673570848,0.060005,66704.0,66701.0,0.17]
[1729673572540,0.060005,66704.0,66698.0,0.06001]
[1729673572541,0.2233,66708.0,66697.0,0.17]
[1729673572742,0.3608,66700.0,66696.0,0.05126]
[1729673573052,0.060006,66703.0,66698.0,0.17]
[1729673573553,0.0533,66708.0,66701.0,0.17]
[1729673573749,0.3608,66709.0,66701.0,0.17]
[1729673573948,0.3608,66709.0,66705.0,0.17]
[1729673574149,0.00184,66714.0,66708.0,0.17]
[1729673574352,0.0502,66717.0,66713.0,0.229997]
[1729673575251,0.02897415,66716.0,66713.0,0.17]
[1729673575443,0.02897415,66715.0,66714.0,0.059996]
[1729673576758,0.059991,66720.0,66713.0,0.17]
[1729673576954,0.02897219,66719.0,66713.0,0.17]
[1729673577156,0.02897219,66718.0,66713.0,0.17]
[1729673577352,0.059992,66719.0,66715.0,0.059995]
[1729673577553,0.02897265,66718.0,66715.0,0.059995]
[1729673577752,0.059992,66719.0,66715.0,0.059995]
[1729673577949,0.02897288,66718.0,66713.0,0.17]
[1729673578148,0.059988,66723.0,66718.0,0.17]
[1729673578354,0.02897216,66722.0,66721.0,0.059989]
[1729673578656,0.02897216,66722.0,66721.0,0.229989]
[1729673579352,0.05998,66732.0,66726.0,0.059985]
[1729673579559,0.02896914,66731.0,66728.0,0.17]
[1729673579752,0.3608,66733.0,66729.0,0.059982]
[1729673579946,0.3608,66733.0,66725.0,0.0502]
[1729673579947,0.0289675,66732.0,66725.0,0.0502]
[1729673580250,0.3608,66733.0,66731.0,0.17]
[1729673580451,0.3608,66733.0,66731.0,0.229981]
[1729673581459,0.3608,66733.0,66731.0,0.17]
[1729673581659,0.3608,66733.0,66732.0,0.05998]
[1729673583963,0.3608,66733.0,66731.0,0.17]
[1729673584352,0.420779,66733.0,66731.0,0.17]
[1729673584661,0.05998,66732.0,66729.0,0.0532]
[1729673584865,0.05998,66732.0,66731.0,0.17]
[1729673585060,0.3608,66733.0,66731.0,0.17]
[1729673587460,0.3608,66733.0,66731.0,0.229981]
[1729673587660,0.3608,66733.0,66732.0,0.05998]
[1729673590363,0.3232837,66733.0,66732.0,0.05998]
[1729673590955,0.420773,66739.0,66732.0,0.05998]
[1729673591161,0.059974,66738.0,66737.0,0.17]
[1729673592968,0.059974,66738.0,66732.0,0.05998]
[1729673593151,0.059974,66738.0,66735.0,0.17]
[1729673593358,0.3608,66739.0,66735.0,0.17]
[1729673593657,0.059976,66736.0,66735.0,0.17]
[1729673605366,0.059976,66736.0,66735.0,0.27536149]
[1729673606474,0.3608,66739.0,66735.0,0.27536149]
[1729673606675,0.3608,66739.0,66738.0,0.07484294]
[1729673606969,0.420773,66739.0,66738.0,0.24484294]
[1729673607363,0.420773,66739.0,66738.0,0.27551947]
[1729673607868,0.420773,66739.0,66734.0,0.07488727]
[1729673607869,0.059974,66738.0,66734.0,0.07488727]
[1729673608075,0.059977,66735.0,66734.0,0.07488727]
[1729673608270,0.059984,66727.0,66726.0,0.17]
[1729673608574,0.059984,66727.0,66726.0,0.27599887]
[1729673608968,0.059984,66727.0,66726.0,0.10599887]
[1729673610103,0.059984,66727.0,66726.0,0.27599887]
[1729673611071,0.059984,66727.0,66726.0,0.10599887]
[1729673611262,0.059984,66727.0,66726.0,0.27599887]
[1729673612271,0.059984,66727.0,66722.0,0.17]
[1729673612471,0.420787,66725.0,66722.0,0.17]
[1729673612673,0.3608,66725.0,66722.0,0.17]
[1729673612881,0.059983,66729.0,66722.0,0.17]
[1729673613073,0.02896877,66728.0,66723.0,0.059987]
[1729673613278,0.02896877,66727.0,66723.0,0.059987]
[1729673613475,0.059983,66729.0,66723.0,0.059987]
[1729673613670,0.02896866,66728.0,66723.0,0.059987]
[1729673613877,0.059983,66729.0,66723.0,0.059987]
[1729673614075,0.0889517,66728.0,66723.0,0.059987]
[1729673614277,0.059983,66728.0,66727.0,0.17]
[1729673614484,0.08895287,66728.0,66727.0,0.17]
[1729673617988,0.08916551,66728.0,66727.0,0.17]
[1729673620185,0.059987,66724.0,66720.0,0.05999]
[1729673620371,0.3608,66722.0,66720.0,0.05999]
[1729673620774,0.3608,66722.0,66719.0,0.17]
[1729673620973,0.05999,66721.0,66719.0,0.17]
[1729673624088,0.059991,66720.0,66719.0,0.17]
[1729673624777,0.059991,66720.0,66715.0,0.229995]
[1729673624981,0.059991,66720.0,66716.0,0.10445774]
[1729673625286,0.059991,66720.0,66715.0,0.229995]
[1729673625695,0.3608,66716.0,66712.0,0.0022482]
[1729673625898,0.059997,66713.0,66712.0,0.0022482]
[1729673626490,0.109397,66713.0,66712.0,0.0022482]
[1729673626993,0.559077,66713.0,66712.0,0.0022482]
[1729673627184,0.109397,66713.0,66712.0,0.0022482]
[1729673627382,0.559077,66713.0,66701.0,0.05987004]
[1729673627581,0.3608,66703.0,66699.0,0.1402154]
[1729673627783,0.3608,66703.0,66702.0,0.17]
[1729673637099,0.3608,66703.0,66702.0,0.230007]
[1729673638908,0.059997,66713.0,66707.0,0.060002]
[1729673639106,0.059997,66713.0,66709.0,0.17]
[1729673639703,0.36264,66714.0,66709.0,0.17]
[1729673639904,0.3608,66714.0,66713.0,0.059997]
[1729673640093,0.05999,66721.0,66717.0,0.059993]
[1729673640298,0.3608,66723.0,66717.0,0.059993]
[1729673640299,0.3608,66723.0,66720.0,0.17]
[1729673640899,0.3608,66723.0,66721.0,0.059989]
[1729673641505,0.3608,66723.0,66722.0,0.059989]
[1729673648008,0.3608,66723.0,66722.0,0.11975167]
[1729673648303,0.3608,66730.0,66722.0,0.87020267]
[1729673648512,0.3608,66730.0,66729.0,0.229982]
[1729673649016,0.420774,66739.0,66729.0,0.7008]
[1729673649311,0.420774,66739.0,66738.0,0.17]
[1729673650706,0.4867646,66739.0,66738.0,0.17]
[1729673651406,0.1259646,66739.0,66738.0,0.17]
[1729673653015,0.12615117,66739.0,66738.0,0.17]
[1729673653505,0.08943259,66739.0,66738.0,0.17]
[1729673654306,0.12615122,66739.0,66738.0,0.17]
[1729673654718,0.08943259,66739.0,66738.0,0.17]
[1729673657604,0.059974,66739.0,66738.0,0.17]
[1729673662117,0.0208374,66743.0,66738.0,0.17]
[1729673662318,0.0208374,66743.0,66737.0,0.3608]
[1729673662319,0.3608,66763.0,66742.0,0.17]
[1729673662511,0.059957,66758.0,66752.0,0.17]
[1729673662714,0.0498,66760.0,66752.0,0.17]
[1729673662912,0.0498,66760.0,66746.0,0.17]
[1729673662913,0.17,66753.0,66746.0,0.17]
[1729673663112,0.059967,66746.0,66745.0,0.3608]
[1729673663317,0.17,66746.0,66737.0,0.38269686]
[1729673663518,0.059973,66739.0,66737.0,0.3608]
[1729673668427,0.0511,66741.0,66737.0,0.3608]
[1729673668428,0.229974,66738.0,66737.0,0.3608]
[1729673670324,0.169974,66738.0,66737.0,0.3608]
[1729673670621,0.11,66738.0,66731.0,0.53078]
[1729673670826,0.059978,66734.0,66731.0,0.3608]
[1729673671420,0.048,66733.0,66731.0,0.3608]
[1729673672228,0.17,66732.0,66731.0,0.3608]
[1729673672622,0.11226129,66732.0,66731.0,0.3608]
[1729673672927,0.059983,66729.0,66723.0,0.229987]
[1729673673127,0.1334249,66726.0,66724.0,0.36304767]
[1729673673327,0.06623437,66725.0,66724.0,0.36304767]
[1729673673532,0.11226496,66725.0,66724.0,0.36304767]
[1729673674524,0.26160933,66725.0,66724.0,0.36304767]
[1729673674929,0.11226496,66725.0,66724.0,0.00224767]
[1729673675725,0.34171958,66725.0,66724.0,0.00224767]
[1729673676539,0.36290174,66725.0,66724.0,0.00224767]
[1729673676726,0.5273766,66725.0,66724.0,0.00224767]
[1729673676925,0.36290174,66725.0,66724.0,0.00224767]
[1729673677924,0.5273766,66725.0,66724.0,0.00224767]
[1729673678127,0.36290174,66725.0,66724.0,0.00224767]
[1729673678629,0.19290174,66725.0,66724.0,0.00224767]
[1729673679539,0.27535962,66725.0,66724.0,0.00224767]
[1729673679728,0.22932429,66725.0,66724.0,0.00224767]
[1729673679929,0.08116816,66725.0,66724.0,0.00224767]
[1729673681337,0.08116816,66725.0,66724.0,0.04711448]
[1729673681640,0.08116816,66725.0,66724.0,0.00224767]
[1729673682637,0.25116816,66725.0,66724.0,0.00224767]
[1729673682829,0.25116816,66725.0,66713.0,0.05976267]
[1729673682830,0.059993,66717.0,66713.0,0.05976267]
[1729673683029,0.059997,66714.0,66711.0,0.22976267]
[1729673683338,0.059997,66714.0,66712.0,0.05976267]
[1729673683538,0.059999,66711.0,66709.0,0.05976267]
[1729673683729,0.06,66710.0,66709.0,0.05976267]
[1729673684641,0.06,66710.0,66708.0,0.42056267]
[1729673685540,0.048,66716.0,66708.0,0.3608]
[1729673685541,0.06,66709.0,66708.0,0.3608]
[1729673688435,0.06,66709.0,66706.0,0.17]
[1729673689332,0.059997,66713.0,66706.0,0.17]
[1729673689540,0.059997,66713.0,66710.0,0.17]
[1729673691037,0.059999,66711.0,66710.0,0.17]
[1729673692341,0.059999,66711.0,66710.0,0.11]
[1729673695036,0.059999,66711.0,66710.0,0.15481325]
[1729673696344,0.059999,66711.0,66710.0,0.04481325]
[1729673696638,0.059999,66711.0,66708.0,0.3608]
[1729673696838,0.11,66715.0,66710.0,0.11]
[1729673697039,0.059999,66711.0,66710.0,0.11]
[1729673697343,0.059999,66711.0,66708.0,0.4708]
[1729673697545,0.059999,66711.0,66708.0,0.53056267]
[1729673697738,0.06,66710.0,66708.0,0.53056267]
[1729673698545,0.06,66710.0,66709.0,0.05976267]
[1729673699439,0.06,66710.0,66708.0,0.4716]
[1729673699640,0.06,66709.0,66708.0,0.4708]
[1729673701839,0.0602,66709.0,66708.0,0.471]
[1729673702754,0.1702,66709.0,66708.0,0.361]
[1729673704346,0.531,66709.0,66708.0,0.0002]
[1729673704542,0.98072,66709.0,66708.0,0.0002]
[1729673704754,0.170003,66706.0,66705.0,0.04491419]
[1729673705153,0.170203,66706.0,66705.0,0.04511419]
[1729673705351,0.226103,66706.0,66705.0,0.04511419]
[1729673705546,0.675823,66706.0,66705.0,0.04511419]
[1729673705851,0.060011,66697.0,66696.0,0.07470585]
[1729673706154,0.530811,66697.0,66696.0,0.07470585]
[1729673706755,0.531011,66697.0,66696.0,0.07490585]
[1729673708251,0.44220276,66697.0,66696.0,0.07490585]
[1729673708451,0.67228276,66697.0,66696.0,0.07490585]
[1729673709147,0.44220276,66697.0,66696.0,0.07490585]
[1729673709451,0.44220276,66697.0,66696.0,0.0002]
[1729673709645,0.44220276,66697.0,66696.0,0.060212]
[1729673710043,0.44220276,66697.0,66696.0,0.0002]
[1729673710452,0.55220276,66697.0,66696.0,0.0002]
[1729673730472,0.19140276,66697.0,66696.0,0.0002]
[1729673735265,0.0002,66697.0,66696.0,0.52405596]
[1729673735470,0.060008,66701.0,66700.0,0.060009]
[1729673735673,0.060008,66701.0,66700.0,0.27273002]
[1729673735978,0.12380801,66701.0,66700.0,0.16293002]
[1729673736280,0.12380801,66701.0,66700.0,0.07520039]
[1729673736469,0.23380801,66701.0,66700.0,0.07520039]
[1729673737382,0.23380801,66701.0,66700.0,0.0002]
[1729673740576,0.060017,66691.0,66687.0,0.1588]
[1729673740773,0.19335014,66691.0,66690.0,0.3608]
[1729673740969,0.12799381,66691.0,66690.0,0.3608]
[1729673741169,0.19335014,66691.0,66690.0,0.3608]
[1729673741474,0.17405109,66691.0,66690.0,0.3608]
[1729673741879,0.12799381,66691.0,66690.0,0.3608]
[1729673745080,0.12799381,66691.0,66687.0,0.269]
[1729673745081,0.17404912,66691.0,66687.0,0.269]
[1729673745285,0.1335021,66690.0,66687.0,0.269]
[1729673745587,0.11375257,66689.0,66687.0,0.2692]
[1729673745888,0.1335021,66690.0,66687.0,0.2692]
[1729673745889,0.06769536,66688.0,66687.0,0.2692]
[1729673746482,0.08280247,66688.0,66687.0,0.2692]
[1729673746682,0.06769536,66688.0,66687.0,0.2692]
[1729673747490,0.06769536,66688.0,66687.0,0.32922]
[1729673747684,0.1935191,66691.0,66687.0,0.4320514]
[1729673747992,0.060017,66691.0,66690.0,0.18496999]
[1729673748188,0.060017,66691.0,66690.0,0.28780167]
[1729673748399,0.060017,66691.0,66690.0,0.2128314]
[1729673748690,0.060017,66691.0,66690.0,0.28800096]
[1729673748885,0.060017,66691.0,66690.0,0.2130314]
[1729673749682,0.060017,66691.0,66690.0,0.5738314]
[1729673750195,0.02075365,66695.0,66690.0,0.5738314]
[1729673750384,0.060013,66695.0,66693.0,0.11]
[1729673750687,0.060013,66695.0,66694.0,0.0002]
[1729673762809,0.060013,66695.0,66690.0,0.47176]
[1729673762810,0.060015,66693.0,66690.0,0.11076]
[1729673763009,0.11409988,66692.0,66690.0,0.11]
[1729673763207,0.17411688,66691.0,66687.0,0.1104]
[1729673763420,0.420819,66688.0,66687.0,0.0004]
[1729673763702,0.58873581,66688.0,66687.0,0.0004]
[1729673763904,2.08873581,66688.0,66687.0,0.0004]
[1729673764606,0.47463593,66688.0,66687.0,0.0004]
[1729673765699,0.69704707,66688.0,66687.0,0.0004]
[1729673765899,0.80704707,66688.0,66687.0,0.0004]
[1729673766204,0.58704707,66688.0,66687.0,0.0004]
[1729673766609,0.13663306,66688.0,66687.0,0.1104]
[1729673766797,0.05381693,66688.0,66687.0,0.17042]
[1729673766992,0.05381693,66688.0,66687.0,0.06042]
[1729673769507,0.05381693,66688.0,66687.0,0.1104]
[1729673770208,0.05381693,66688.0,66687.0,0.17042]
[1729673770609,0.3608,66695.0,66694.0,0.060014]
[1729673770810,0.44763414,66701.0,66699.0,0.060009]
[1729673771005,0.42460001,66701.0,66700.0,0.223309]
[1729673771218,0.42460001,66701.0,66700.0,0.223509]
[1729673771507,0.06380001,66701.0,66700.0,0.331709]
[1729673772099,0.06380001,66701.0,66700.0,0.781469]
[1729673773202,0.01036949,66701.0,66700.0,0.781469]
[1729673773603,0.01036949,66701.0,66700.0,1.381469]
[1729673773909,0.19397015,66712.0,66705.0,0.060004]
[1729673774096,0.19397015,66712.0,66705.0,0.640804]
[1729673774301,0.19397015,66712.0,66705.0,1.090724]
[1729673775615,0.19397015,66712.0,66708.0,0.060001]
[1729673775818,0.19397015,66712.0,66708.0,0.280001]
[1729673776110,0.19397015,66712.0,66708.0,1.329921]
[1729673776301,0.19397015,66712.0,66711.0,0.059999]
[1729673776508,0.19397015,66712.0,66711.0,0.229999]
[1729673776704,0.19397015,66712.0,66711.0,0.510079]
[1729673776910,0.19397015,66712.0,66711.0,0.680079]
[1729673777814,0.23820637,66712.0,66711.0,0.6050327]
[1729673778015,0.15107119,66712.0,66711.0,0.6650317]
[1729673778217,0.16611849,66712.0,66708.0,0.0002]
[1729673778520,0.13317139,66709.0,66708.0,0.0002]
[1729673778705,0.03157872,66709.0,66708.0,0.1702]
[1729673778904,0.27735857,66709.0,66708.0,0.1702]
[1729673779219,0.12939036,66709.0,66708.0,0.1702]
[1729673779416,0.12939036,66709.0,66705.0,0.361]
[1729673779417,0.63809099,66709.0,66705.0,0.0002]
[1729673779625,0.16269049,66706.0,66705.0,0.0002]
[1729673779921,0.11434306,66706.0,66705.0,0.0002]
[1729673780220,0.24389336,66706.0,66705.0,0.0002]
[1729673780922,0.2417844,66706.0,66705.0,0.0002]
[1729673783215,0.2955909,66706.0,66705.0,0.0002]
[1729673783416,0.2417844,66706.0,66705.0,0.00012286]
[1729673785721,0.1295503,66706.0,66705.0,0.00012286]
[1729673789027,0.15034001,66706.0,66705.0,0.00012286]
[1729673791633,0.15034001,66706.0,66700.0,0.0002]
[1729673791933,0.2450553,66701.0,66700.0,0.0002]
[1729673792424,0.2969553,66701.0,66700.0,0.0002]
[1729673792826,0.060013,66695.0,66694.0,0.0002]
[1729673793022,0.50179003,66695.0,66694.0,0.0002]
[1729673794636,0.54784877,66695.0,66694.0,0.0002]
[1729673795032,0.54784877,66695.0,66686.0,0.00224855]
[1729673795033,0.44177703,66695.0,66686.0,0.00224855]
[1729673795238,0.0750663,66688.0,66686.0,0.00224855]
[1729673795434,0.14099603,66688.0,66686.0,0.00224855]
[1729673795627,0.19629603,66688.0,66686.0,0.00224855]
[1729673796232,0.19629603,66688.0,66681.0,0.3608]
[1729673796434,0.66050263,66688.0,66667.0,0.3608]
[1729673796750,0.17,66670.0,66667.0,0.3608]
[1729673797040,0.060032,66674.0,66667.0,0.3608]
[1729673797041,0.0150473,66668.0,66667.0,0.3608]
[1729673797332,0.04423539,66668.0,66667.0,0.3608]
[1729673797535,0.04423539,66668.0,66667.0,0.5308]
[1729673797728,0.02918809,66668.0,66667.0,0.5308]
[1729673798037,0.0553,66673.0,66667.0,0.5308]
[1729673798231,0.0150473,66671.0,66667.0,0.3608]
[1729673798433,0.0150473,66671.0,66669.0,0.17]
[1729673799128,0.02904745,66670.0,66669.0,0.17]
[1729673799326,1.5150473,66680.0,66669.0,0.17]
[1729673799534,1.5150473,66680.0,66668.0,0.0567]
[1729673799535,0.02922908,66679.0,66668.0,0.0567]
[1729673799829,1.5150473,66680.0,66679.0,0.0002]
[1729673799830,0.0168873,66680.0,66679.0,0.0002]
[1729673800038,0.0150473,66680.0,66679.0,0.0002]
[1729673800265,0.02932177,66680.0,66679.0,0.0004]
[1729673800432,0.3608,66682.0,66679.0,0.053]
[1729673800631,0.02947106,66681.0,66679.0,0.053]
[1729673800833,0.3608,66682.0,66681.0,0.1702]
[1729673801243,0.3608,66682.0,66681.0,0.1704]
[1729673803345,0.060024,66684.0,66681.0,0.1704]
[1729673803550,0.3608,66688.0,66681.0,0.1704]
[1729673803732,0.0150473,66686.0,66685.0,0.17]
[1729673803938,0.060023,66684.0,66683.0,0.0002]
[1729673806850,0.2450703,66684.0,66683.0,0.0002]
[1729673807841,0.27439375,66684.0,66683.0,0.0002]
[1729673808251,0.31120802,66684.0,66683.0,0.0002]
[1729673810441,0.2744563,66684.0,66683.0,0.0002]
[1729673811047,0.31120888,66684.0,66683.0,0.0002]
[1729673811644,0.35727685,66684.0,66683.0,0.00012308]
[1729673811848,0.41417685,66684.0,66683.0,0.00012308]
[1729673812250,0.36810888,66684.0,66683.0,0.00012308]
[1729673812849,0.48358888,66684.0,66683.0,0.00012308]
[1729673813356,0.060025,66682.0,66681.0,0.0004]
[1729673813547,0.0750723,66682.0,66681.0,0.0004]
[1729673813748,0.18728073,66682.0,66681.0,0.0004]
[1729673815055,0.18728418,66682.0,66681.0,0.0004]
[1729673815849,1.5750723,66682.0,66681.0,0.0004]
[1729673819957,0.0750723,66682.0,66681.0,0.0004]
[1729673820667,0.060027,66680.0,66679.0,0.0004]
[1729673820868,0.6058743,66680.0,66679.0,0.0004]
[1729673822962,0.4358743,66680.0,66679.0,0.0004]
[1729673823753,0.45668144,66680.0,66679.0,0.0004]
[1729673825061,0.57220144,66680.0,66679.0,0.0004]
[1729673826059,0.45668144,66680.0,66679.0,0.0004]
[1729673826261,0.57220144,66680.0,66679.0,0.0004]
[1729673828056,0.45668144,66680.0,66679.0,0.0004]
[1729673829568,0.45668144,66680.0,66679.0,0.04533829]
[1729673830672,0.45668144,66680.0,66679.0,0.0004]
[1729673830868,0.52243037,66680.0,66679.0,0.0004]
[1729673835672,0.48657593,66680.0,66679.0,0.0004]
[1729673836063,0.48657593,66680.0,66679.0,0.1704]
[1729673836470,0.63486748,66680.0,66679.0,0.0004]
[1729673836663,0.85083842,66680.0,66679.0,0.0004]
[1729673836867,0.67162073,66680.0,66679.0,0.0004]
[1729673837861,0.6058743,66680.0,66679.0,0.060131]
[1729673838171,0.74233711,66680.0,66679.0,0.04538315]
[1729673838467,0.74233711,66680.0,66679.0,0.0004]
[1729673840673,0.62685711,66680.0,66679.0,0.0004]
[1729673840974,0.74233711,66680.0,66679.0,0.0004]
[1729673841365,0.91233711,66680.0,66679.0,0.0004]
[1729673842266,0.74233711,66680.0,66679.0,0.0004]
[1729673842863,2.24233711,66680.0,66679.0,0.0004]
[1729673843372,0.45685711,66680.0,66679.0,0.0004]
[1729673843672,0.45685711,66680.0,66679.0,0.060131]
[1729673843866,0.45685711,66680.0,66679.0,0.0004]
[1729673844270,0.4358743,66680.0,66679.0,0.0004]
[1729673851970,0.6058743,66680.0,66679.0,0.0004]
[1729673852371,2.1058743,66680.0,66679.0,0.0004]
[1729673852867,2.38770215,66680.0,66679.0,0.0004]
[1729673853071,2.32767515,66680.0,66663.0,0.3608]
[1729673853274,0.0750883,66664.0,66663.0,0.3608]
[1729673853476,0.10408357,66664.0,66663.0,0.3608]
[1729673855478,0.10408357,66664.0,66663.0,0.001]
[1729673856271,0.10408486,66664.0,66663.0,0.001]
[1729673857675,0.04404386,66664.0,66656.0,0.17]
[1729673857878,0.9066473,66657.0,66650.0,2.82305013]
[1729673858081,0.060063,66640.0,66609.0,0.06000819]
[1729673858382,0.3608,66607.0,66570.0,0.13465423]
[1729673858581,0.7216,66571.0,66539.0,0.0001]
[1729673858767,0.147529,66600.0,66542.0,0.060151]
[1729673858768,0.3608,66544.0,66542.0,0.060151]
[1729673858971,0.3608,66544.0,66533.0,0.17]
[1729673859172,0.3608,66546.0,66543.0,0.43653405]
[1729673859374,0.7216,66544.0,66537.0,0.0578]
[1729673859670,0.7216,66544.0,66537.0,0.28325949]
[1729673859671,0.274,66538.0,66537.0,0.28325949]
[1729673859877,0.18575406,66538.0,66537.0,0.71979354]
[1729673860176,0.17,66552.0,66550.0,0.07561076]
[1729673860387,0.3608,66561.0,66551.0,0.3608]
[1729673860582,0.3608,66561.0,66560.0,0.07561076]
[1729673860583,0.060134,66561.0,66560.0,0.07561076]
[1729673860787,0.060134,66561.0,66553.0,0.26]
[1729673860788,0.3608,66568.0,66552.0,0.3608]
[1729673861080,0.3608,66568.0,66558.0,0.3608]
[1729673861281,0.420928,66568.0,66567.0,0.0002]
[1729673861579,0.3608,66568.0,66567.0,0.0002]
[1729673861779,0.3608,66577.0,66567.0,0.0002]
[1729673861986,0.3608,66592.0,66574.0,0.3608]
[1729673862180,0.060112,66586.0,66582.0,0.3608]
[1729673862982,0.060113,66585.0,66582.0,0.3608]
[1729673863180,0.060113,66585.0,66584.0,0.26]
[1729673863985,0.81136,66585.0,66576.0,0.0002]
[1729673864190,0.420919,66577.0,66576.0,0.0002]
[1729673864575,0.871519,66577.0,66576.0,0.0002]
[1729673866177,0.871519,66577.0,66558.0,0.36305372]
[1729673866392,0.060142,66552.0,66551.0,0.361]
[1729673866685,0.06020317,66552.0,66551.0,0.621]
[1729673866892,0.060142,66552.0,66551.0,0.621]
[1729673867675,0.060142,66552.0,66551.0,0.361]
[1729673867890,1.110902,66552.0,66551.0,0.361]
[1729673868073,1.110902,66552.0,66541.0,0.26]
[1729673868074,0.060151,66543.0,66541.0,0.26]
[1729673868277,1.41162117,66552.0,66503.0,0.02090547]
[1729673868278,0.3608,66534.0,66503.0,0.02090547]
[1729673868485,0.3608,66506.0,66501.0,0.0527]
[1729673868776,0.3608,66506.0,66504.0,0.060185]
[1729673869700,0.62086117,66506.0,66505.0,0.03]
[1729673869877,1.13212517,66506.0,66505.0,0.03]
[1729673870079,6.117e-05,66505.0,66500.0,10.0]
[1729673870304,0.7608,66501.0,66500.0,10.0]
[1729673870590,0.3608,66501.0,66500.0,10.0]
[1729673871179,0.872108,66501.0,66500.0,10.0]
[1729673871383,0.420988,66501.0,66500.0,10.0]
[1729673871685,0.42104917,66501.0,66500.0,10.0]
[1729673871889,0.36086117,66501.0,66500.0,10.0]
[1729673872080,0.81192,66501.0,66500.0,10.0]
[1729673872587,0.81292,66501.0,66500.0,10.01]
[1729673872783,0.87316917,66501.0,66500.0,10.01]
[1729673873086,0.81292,66501.0,66500.0,10.01]
[1729673873288,0.873108,66501.0,66500.0,10.01]
[1729673873483,0.872108,66501.0,66500.0,10.0]
[1729673873684,1.472108,66501.0,66500.0,10.0]
[1729673873882,0.872108,66501.0,66500.0,10.0]
[1729673874088,0.81192,66501.0,66500.0,10.0]
[1729673874992,1.41192,66501.0,66500.0,10.0]
[1729673875287,1.472108,66501.0,66500.0,10.0]
[1729673875487,0.872108,66501.0,66500.0,10.0]
[1729673875680,1.472108,66501.0,66500.0,10.0]
[1729673875881,0.872108,66501.0,66500.0,10.0]